fUST/lending_fUST_20250202
["ID","MTS","AMOUNT","RATE_DAILY","PERIOD"]
[351225901,1738450241021,-500.0,0.00016438,2]
[351225902,1738450241031,-500.0,0.00016438,2]
[351225903,1738450241040,-500.0,0.00016438,2]
[351225904,1738450241049,-512.80334496,0.00016438,2]
[351225905,1738450241058,-509.81683209,0.00016438,2]
[351225906,1738450241067,-500.0,0.00016438,2]
[351225907,1738450241077,-500.0,0.00016438,2]
[351225908,1738450241086,-500.0,0.00016438,2]
[351225909,1738450241095,-500.0,0.00016438,2]
[351225910,1738450241104,-645.56681976,0.00016438,2]
[351225911,1738450241113,-500.0,0.00016438,2]
[351225912,1738450241123,-500.0,0.00016438,2]
[351225913,1738450241132,-500.0,0.00016438,2]
[351225914,1738450241142,-500.0,0.00016438,2]
[351225915,1738450241151,-500.0,0.00016438,2]
[351225916,1738450241161,-500.0,0.00016438,2]
[351225917,1738450241170,-500.0,0.00016438,2]
[351225918,1738450241179,-500.0,0.00016438,2]
[351225919,1738450241188,-500.0,0.00016438,2]
[351225920,1738450241197,-500.0,0.00016438,2]
[351225921,1738450241206,-623.85613057,0.00016438,2]
[351225922,1738450241215,-500.0,0.00016438,2]
[351225923,1738450241225,-500.7729404,0.00016438,2]
[351225924,1738450241234,-500.0,0.00016438,2]
[351225925,1738450241243,-500.0,0.00016438,2]
[351225926,1738450241252,-1216.12,0.00016438,2]
[351225927,1738450241261,-500.0,0.00016438,2]
[351225928,1738450241272,-564.2755885,0.00016438,2]
[351225929,1738450241281,-500.0,0.00016438,2]
[351225930,1738450241291,-500.0,0.00016438,2]
[351225931,1738450241300,-500.0,0.00016438,2]
[351225932,1738450241310,-503.06918222,0.00016438,2]
[351225933,1738450241319,-500.0,0.00016438,2]
[351225934,1738450241329,-514.73190184,0.00016438,2]
[351225935,1738450241338,-500.0,0.00016438,2]
[351225936,1738450241347,-500.0,0.00016438,2]
[351225937,1738450241358,-500.0,0.00016438,2]
[351225938,1738450241367,-567.22,0.00016438,2]
[351225939,1738450241376,-500.0,0.00016438,2]
[351225940,1738450241385,-500.0,0.00016438,2]
[351225941,1738450241395,-500.0,0.00016438,2]
[351225942,1738450241404,-500.0,0.00016438,2]
[351225943,1738450241413,-500.0,0.00016438,2]
[351225944,1738450241422,-500.0,0.00016438,2]
[351225945,1738450241431,-500.0,0.00016438,2]
[351225946,1738450241550,-500.0,0.00016438,2]
[351225947,1738450241559,-500.0,0.00016438,2]
[351225948,1738450241569,-503.19520352,0.00016438,2]
[351225949,1738450241578,-500.0,0.00016438,2]
[351225950,1738450241588,-500.0,0.00016438,2]
[351225951,1738450241597,-500.0,0.00016438,2]
[351225952,1738450241606,-398.76486589,0.00016438,2]
[351225953,1738450241615,-500.0,0.00016438,2]
[351225954,1738450241625,-500.0,0.00016438,2]
[351225955,1738450241635,-500.0,0.00016438,2]
[351225956,1738450241644,-500.0,0.00016438,2]
[351225957,1738450241653,-500.0,0.00016438,2]
[351225958,1738450241662,-500.0,0.00016438,2]
[351225959,1738450241671,-500.0,0.00016438,2]
[351225960,1738450241681,-200.0,0.00016438,2]
[351225961,1738450241691,-500.0,0.00016438,2]
[351225962,1738450241700,-500.0,0.00016438,2]
[351225963,1738450241709,-500.0,0.00016438,2]
[351225964,1738450241718,-500.0,0.00016438,2]
[351225965,1738450241728,-500.0,0.00016438,2]
[351225966,1738450241737,-500.0,0.00016438,2]
[351225967,1738450241746,-500.0,0.00016438,2]
[351225968,1738450241756,-500.0,0.00016438,2]
[351225969,1738450241765,-500.0,0.00016438,2]
[351225970,1738450241777,-500.0,0.00016438,2]
[351225971,1738450241787,-500.0,0.00016438,2]
[351225972,1738450241796,-500.0,0.00016438,2]
[351225973,1738450241807,-500.0,0.00016438,2]
[351225974,1738450241816,-500.0,0.00016438,2]
[351225975,1738450241826,-500.0,0.00016438,2]
[351225976,1738450241835,-500.0,0.00016438,2]
[351225977,1738450241844,-500.0,0.00016438,2]
[351225978,1738450241853,-500.0,0.00016438,2]
[351225979,1738450241864,-500.0,0.00016438,2]
[351225980,1738450241873,-500.0,0.00016438,2]
[351225981,1738450241882,-500.0,0.00016438,2]
[351225982,1738450241892,-513.57327636,0.00016438,2]
[351225983,1738450241902,-500.0,0.00016438,2]
[351225984,1738450241912,-500.0,0.00016438,2]
[351225985,1738450241923,-500.0,0.00016438,2]
[351225986,1738450241932,-500.0,0.00016438,2]
[351225987,1738450241942,-500.0,0.00016438,2]
[351225988,1738450241952,-500.0,0.00016438,2]
[351225989,1738450241961,-626.60147156,0.00016438,2]
[351225990,1738450241972,-500.0,0.00016438,2]
[351225991,1738450241981,-500.0,0.00016438,2]
[351225992,1738450241990,-500.0,0.00016438,2]
[351225993,1738450242000,-500.0,0.00016438,2]
[351225994,1738450242009,-500.0,0.00016438,2]
[351225995,1738450242019,-500.0,0.00016438,2]
[351225996,1738450242031,-500.0,0.00016438,2]
[351225997,1738450242040,-502.3798999,0.00016438,2]
[351225998,1738450242049,-500.0,0.00016438,2]
[351225999,1738450242058,-500.0,0.00016438,2]
[351226000,1738450242068,-500.0,0.00016438,2]
[351226001,1738450242077,-500.0,0.00016438,2]
[351226002,1738450242086,-500.0,0.00016438,2]
[351226003,1738450242095,-500.0,0.00016438,2]
[351226004,1738450242104,-500.0,0.00016438,2]
[351226005,1738450242115,-500.0,0.00016438,2]
[351226006,1738450242124,-500.0,0.00016438,2]
[351226007,1738450242134,-500.0,0.00016438,2]
[351226008,1738450242144,-500.0,0.00016438,2]
[351226009,1738450242154,-510.3813795,0.00016438,2]
[351226010,1738450242165,-500.0,0.00016438,2]
[351226011,1738450242175,-503.82382776,0.00016438,2]
[351226012,1738450242186,-503.09337898,0.00016438,2]
[351226013,1738450242195,-500.0,0.00016438,2]
[351226014,1738450242205,-500.0,0.00016438,2]
[351226015,1738450242216,-500.0,0.00016438,2]
[351226016,1738450242226,-500.0,0.00016438,2]
[351226017,1738450242236,-500.0,0.00016438,2]
[351226018,1738450242246,-500.0,0.00016438,2]
[351226019,1738450242254,-500.0,0.00016438,2]
[351226020,1738450242262,-493.9766575,0.00016438,2]
[351226021,1738450242272,-500.0,0.00016438,2]
[351226022,1738450242281,-500.0,0.00016438,2]
[351226023,1738450242290,-1074.9,0.00016438,2]
[351226024,1738450242300,-502.06214172,0.00016438,2]
[351226025,1738450242313,-2996.06,0.00016438,2]
[351226026,1738450242322,-500.0,0.00016438,2]
[351226027,1738450242331,-1923.7,0.00016438,2]
[351226028,1738450242340,-500.0,0.00016438,2]
[351226029,1738450242351,-500.0,0.00016438,2]
[351226030,1738450242360,-564.89,0.00016438,2]
[351226031,1738450242370,-500.0,0.00016438,2]
[351226032,1738450242380,-500.0,0.00016438,2]
[351226033,1738450242390,-500.0,0.00016438,2]
[351226034,1738450242400,-500.0,0.00016438,2]
[351226035,1738450242409,-500.0,0.00016438,2]
[351226036,1738450242418,-500.65336918,0.00016438,2]
[351226037,1738450242428,-500.0,0.00016438,2]
[351226038,1738450242438,-500.0,0.00016438,2]
[351226039,1738450242447,-485.76181211,0.00016438,2]
[351226040,1738450242456,-500.0,0.00016438,2]
[351226041,1738450242464,-500.0,0.00016438,2]
[351226042,1738450242474,-500.0,0.00016438,2]
[351226043,1738450242483,-500.0,0.00016438,2]
[351226044,1738450242492,-500.0,0.00016438,2]
[351226045,1738450242503,-500.0,0.00016438,2]
[351226046,1738450242513,-738.99,0.00016438,2]
[351226047,1738450242524,-500.0,0.00016438,2]
[351226048,1738450242534,-1171.42,0.00016438,2]
[351226049,1738450242543,-500.0,0.00016438,2]
[351226050,1738450242552,-503.93489987,0.00016438,2]
[351226051,1738450242562,-500.0,0.00016438,2]
[351226052,1738450242572,-500.0,0.00016438,2]
[351226053,1738450242581,-500.0,0.00016438,2]
[351226054,1738450242591,-500.0,0.00016438,2]
[351226055,1738450242600,-500.0,0.00016438,2]
[351226056,1738450242610,-500.0,0.00016438,2]
[351226057,1738450242622,-500.0,0.00016438,2]
[351226058,1738450242631,-500.0,0.00016438,2]
[351226059,1738450242641,-547.56970323,0.00016438,2]
[351226060,1738450242651,-500.0,0.00016438,2]
[351226061,1738450242662,-500.0,0.00016438,2]
[351226062,1738450242672,-500.0,0.00016438,2]
[351226063,1738450242682,-500.0,0.00016438,2]
[351226064,1738450242692,-500.0,0.00016438,2]
[351226065,1738450242701,-500.0,0.00016438,2]
[351226066,1738450242711,-500.0,0.00016438,2]
[351226068,1738450242722,-257.81925144,0.00016438,2]
[351226070,1738450242731,-213.86990007,0.00016475,2]
[351226071,1738450242741,-152.0,0.00016482,2]
[351226073,1738450242751,-500.0,0.00016574,2]
[351226075,1738450242760,-436.37120742,0.00016575,2]
[351226077,1738450242769,-500.0,0.00016575,2]
[351226078,1738450242780,-1216.12,0.00016575,2]
[351226080,1738450242789,-500.0,0.00016575,2]
[351226081,1738450242798,-567.22,0.00016575,2]
[351226082,1738450242808,-500.0,0.00016575,2]
[351226083,1738450242818,-500.0,0.00016575,2]
[351226084,1738450242837,-500.0,0.00016575,2]
[351226085,1738450242848,-500.0,0.00016575,2]
[351226086,1738450242857,-500.0,0.00016575,2]
[351226088,1738450242867,-500.0,0.00016575,2]
[351226091,1738450242876,-210.53953093,0.00016575,2]
[351226093,1738450242885,-1074.9,0.00016575,2]
[351226094,1738450242895,-2996.06,0.00016575,2]
[351226096,1738450242904,-495.03809022,0.00016575,2]
[351226097,1738450242913,-1923.7,0.00016575,2]
[351226098,1738450242923,-564.89,0.00016575,2]
[351226099,1738450242933,-500.0,0.00016575,2]
[351226101,1738450242943,-500.0,0.00016575,2]
[351226103,1738450242953,-738.99,0.00016575,2]
[351226104,1738450242963,-500.0,0.00016575,2]
[351226105,1738450242973,-1171.42,0.00016575,2]
[351226106,1738450242982,-500.0,0.00016575,2]
[351226107,1738450242991,-500.0,0.00016575,2]
[351226108,1738450243000,-213.86990007,0.00016612,2]
[351226109,1738450243009,-500.0,0.0001671,2]
[351226110,1738450243019,-542.40739575,0.0001671,2]
[351226111,1738450243030,-500.0,0.0001671,2]
[351226112,1738450243039,-500.0,0.00016712,2]
[351226113,1738450243049,-1216.12,0.00016712,2]
[351226114,1738450243058,-500.0,0.00016712,2]
[351226115,1738450243066,-567.22,0.00016712,2]
[351226116,1738450243076,-500.0,0.00016712,2]
[351226117,1738450243085,-500.0,0.00016712,2]
[351226118,1738450243095,-500.0,0.00016712,2]
[351226119,1738450243104,-500.0,0.00016712,2]
[351226120,1738450243114,-500.0,0.00016712,2]
[351226121,1738450243124,-1074.9,0.00016712,2]
[351226122,1738450243133,-2996.06,0.00016712,2]
[351226123,1738450243143,-1923.7,0.00016712,2]
[351226124,1738450243152,-564.89,0.00016712,2]
[351226125,1738450243162,-500.0,0.00016712,2]
[351226126,1738450243171,-500.0,0.00016712,2]
[351226127,1738450243180,-738.99,0.00016712,2]
[351226128,1738450243189,-500.0,0.00016712,2]
[351226129,1738450243199,-1171.42,0.00016712,2]
[351226130,1738450243209,-500.0,0.00016712,2]
[351226131,1738450243218,-213.86990007,0.00016749,2]
[351226132,1738450243227,-723.56,0.000168,2]
[351226133,1738450243237,-500.0,0.00016849,2]
[351226134,1738450243247,-1216.12,0.00016849,2]
[351226135,1738450243258,-500.0,0.00016849,2]
[351226136,1738450243267,-567.22,0.00016849,2]
[351226137,1738450243279,-500.0,0.00016849,2]
[351226138,1738450243289,-500.0,0.00016849,2]
[351226139,1738450243298,-500.0,0.00016849,2]
[351226140,1738450243310,-500.0,0.00016849,2]
[351226141,1738450243320,-500.0,0.00016849,2]
[351226142,1738450243329,-1074.9,0.00016849,2]
[351226143,1738450243339,-2996.06,0.00016849,2]
[351226145,1738450243348,-1923.7,0.00016849,2]
[351226147,1738450243358,-564.89,0.00016849,2]
[351226149,1738450243367,-500.0,0.00016849,2]
[351226150,1738450243377,-500.0,0.00016849,2]
[351226151,1738450243387,-738.99,0.00016849,2]
[351226152,1738450243397,-500.0,0.00016849,2]
[351226154,1738450243407,-1171.42,0.00016849,2]
[351226155,1738450243417,-500.0,0.00016849,2]
[351226156,1738450243427,-213.86990007,0.00016886,2]
[351226157,1738450243437,-324.40224944,0.00016986,2]
[351226158,1738450243454,-175.59775056,0.00016986,2]
[351226159,1738450243463,-1216.12,0.00016986,2]
[351226160,1738450243473,-491.21458154,0.00016986,2]
[351226161,1738450243482,-567.22,0.00016986,2]
[351226162,1738450243492,-500.0,0.00016986,2]
[351226163,1738450243501,-500.0,0.00016986,2]
[351226164,1738450243511,-151.0,0.00016986,2]
[351226165,1738450243520,-500.0,0.00016986,2]
[351226166,1738450243530,-500.0,0.00016986,2]
[351226167,1738450243540,-500.0,0.00016986,2]
[351226168,1738450243550,-1074.9,0.00016986,2]
[351226169,1738450243559,-2996.06,0.00016986,2]
[351226170,1738450243569,-1923.7,0.00016986,2]
[351226171,1738450243579,-564.89,0.00016986,2]
[351226172,1738450243588,-151.0,0.00016986,2]
[351226173,1738450243598,-151.345106,0.00016986,2]
[351226174,1738450243607,-500.0,0.00016986,2]
[351226175,1738450243617,-500.0,0.00016986,2]
[351226176,1738450243627,-738.99,0.00016986,2]
[351226177,1738450243636,-500.0,0.00016986,2]
[351226178,1738450243645,-1171.42,0.00016986,2]
[351226179,1738450243655,-151.0,0.00016986,2]
[351226180,1738450243665,-500.0,0.00016986,2]
[351226181,1738450243674,-287.33,0.00017026,2]
[351226182,1738450243683,-500.0,0.00017123,2]
[351226183,1738450243693,-1216.12,0.00017123,2]
[351226184,1738450243702,-567.22,0.00017123,2]
[351226185,1738450243712,-497.03288061,0.00017123,2]
[351226186,1738450243722,-500.0,0.00017123,2]
[351226187,1738450243731,-151.0,0.00017123,2]
[351226188,1738450243742,-500.0,0.00017123,2]
[351226189,1738450243751,-500.0,0.00017123,2]
[351226190,1738450243761,-500.0,0.00017123,2]
[351226191,1738450243771,-1074.9,0.00017123,2]
[351226192,1738450243781,-2996.06,0.00017123,2]
[351226193,1738450243791,-1923.7,0.00017123,2]
[351226194,1738450243801,-564.89,0.00017123,2]
[351226195,1738450243813,-500.0,0.00017123,2]
[351226196,1738450243823,-500.0,0.00017123,2]
[351226197,1738450243832,-738.99,0.00017123,2]
[351226198,1738450243842,-500.0,0.00017123,2]
[351226199,1738450243851,-1171.42,0.00017123,2]
[351226200,1738450243861,-151.0,0.00017123,2]
[351226201,1738450243870,-500.0,0.00017123,2]
[351226202,1738450243982,-256.92134269,0.00017174,2]
[351226203,1738450243992,-396.0,0.00017186,2]
[351226204,1738450244001,-201.21,0.0001722,2]
[351226205,1738450244012,-500.0,0.0001726,2]
[351226206,1738450244022,-500.0,0.0001726,2]
[351226207,1738450244031,-500.0,0.0001726,2]
[351226208,1738450244040,-244.5483386,0.0001726,2]
[351226209,1738450244053,-255.4516614,0.0001726,2]
[351226210,1738450244063,-277.65014273,0.0001726,2]
[351226211,1738450244073,-460.92762151,0.0001726,2]
[351226212,1738450244083,-151.0,0.0001726,2]
[351226213,1738450244093,-500.0,0.0001726,2]
[351226214,1738450244103,-151.0,0.0001726,2]
[351226215,1738450244113,-1034.70707227,0.0001726,2]
[351226216,1738450244184,-500.0,0.00016438,2]
[351226217,1738450244194,-181.41292773,0.0001726,2]
[351226218,1738450244204,-567.22,0.0001726,2]
[351226219,1738450244213,-500.0,0.0001726,2]
[351226220,1738450244223,-500.0,0.0001726,2]
[351226221,1738450244233,-500.0,0.0001726,2]
[351226222,1738450244244,-500.0,0.0001726,2]
[351226223,1738450244257,-1074.9,0.0001726,2]
[351226224,1738450244266,-2996.06,0.0001726,2]
[351226225,1738450244276,-1923.7,0.0001726,2]
[351226226,1738450244285,-564.89,0.0001726,2]
[351226227,1738450244295,-500.0,0.0001726,2]
[351226228,1738450244306,-500.0,0.0001726,2]
[351226229,1738450244317,-738.99,0.0001726,2]
[351226230,1738450244327,-500.0,0.0001726,2]
[351226231,1738450244337,-1171.42,0.0001726,2]
[351226232,1738450244346,-500.0,0.0001726,2]
[351226233,1738450244355,-449.0,0.000173,7]
[351226234,1738450244367,-151.0,0.00017397,2]
[351226235,1738450244376,-151.0,0.00017397,2]
[351226236,1738450244385,-500.0,0.00017397,2]
[351226237,1738450244394,-1216.12,0.00017397,2]
[351226238,1738450244404,-567.22,0.00017397,2]
[351226239,1738450244414,-500.0,0.00017397,2]
[351226240,1738450244425,-500.0,0.00017397,2]
[351226241,1738450244435,-500.0,0.00017397,2]
[351226242,1738450244444,-500.0,0.00017397,2]
[351226243,1738450244456,-1074.9,0.00017397,2]
[351226244,1738450244475,-2996.06,0.00017397,2]
[351226245,1738450244488,-1923.7,0.00017397,2]
[351226246,1738450244498,-564.89,0.00017397,2]
[351226247,1738450244508,-500.0,0.00017397,2]
[351226248,1738450244518,-500.0,0.00017397,2]
[351226249,1738450244527,-738.99,0.00017397,2]
[351226250,1738450244537,-500.0,0.00017397,2]
[351226251,1738450244547,-1171.42,0.00017397,2]
[351226252,1738450244557,-500.0,0.00017397,2]
[351226253,1738450244566,-500.0,0.00017534,2]
[351226254,1738450244576,-150.11,0.00017534,2]
[351226255,1738450244585,-1216.12,0.00017534,2]
[351226256,1738450244594,-567.22,0.00017534,2]
[351226257,1738450244603,-500.0,0.00017534,2]
[351226258,1738450244613,-150.08,0.00017534,2]
[351226259,1738450244623,-500.0,0.00017534,2]
[351226260,1738450244632,-150.08,0.00017534,2]
[351226261,1738450244642,-150.11,0.00017534,2]
[351226262,1738450244652,-500.0,0.00017534,2]
[351226263,1738450244661,-500.0,0.00017534,2]
[351226264,1738450244670,-1074.9,0.00017534,2]
[351226265,1738450244680,-2996.06,0.00017534,2]
[351226266,1738450244689,-1923.7,0.00017534,2]
[351226267,1738450244699,-564.89,0.00017534,2]
[351226268,1738450244709,-500.0,0.00017534,2]
[351226269,1738450244718,-500.0,0.00017534,2]
[351226270,1738450244727,-738.99,0.00017534,2]
[351226271,1738450244736,-500.0,0.00017534,2]
[351226272,1738450244746,-1171.42,0.00017534,2]
[351226273,1738450244755,-500.0,0.00017534,2]
[351226274,1738450244764,-151.0,0.00017562,3]
[351226275,1738450244775,-1200.0,0.00017575,2]
[351226276,1738450244784,-151.0,0.00017575,2]
[351226277,1738450244794,-667.52,0.00017575,2]
[351226278,1738450244803,-225.12,0.00017611,2]
[351226279,1738450244813,-152.01,0.00017652,2]
[351226280,1738450244822,-154.0,0.00017652,2]
[351226281,1738450244832,-154.0,0.00017652,2]
[351226282,1738450244841,-154.0,0.00017652,2]
[351226283,1738450244851,-154.0,0.00017652,2]
[351226284,1738450244860,-154.0,0.00017652,2]
[351226285,1738450244869,-154.0,0.00017652,2]
[351226286,1738450244878,-154.0,0.00017652,2]
[351226287,1738450244889,-154.0,0.00017652,2]
[351226288,1738450244898,-154.0,0.00017652,2]
[351226289,1738450244909,-154.0,0.00017652,2]
[351226290,1738450244918,-154.0,0.00017652,2]
[351226291,1738450244929,-154.0,0.00017652,2]
[351226292,1738450244939,-154.0,0.00017652,2]
[351226293,1738450244949,-162.0,0.00017652,2]
[351226294,1738450244958,-151.0,0.00017671,2]
[351226295,1738450244968,-500.0,0.00017671,2]
[351226296,1738450244978,-1216.12,0.00017671,2]
[351226297,1738450244987,-567.22,0.00017671,2]
[351226298,1738450244997,-500.0,0.00017671,2]
[351226299,1738450245006,-218.23646,0.00017671,2]
[351226300,1738450245015,-500.0,0.00017671,2]
[351226301,1738450245024,-500.0,0.00017671,2]
[351226302,1738450245033,-500.0,0.00017671,2]
[351226303,1738450245043,-1074.9,0.00017671,2]
[351226304,1738450245052,-2996.06,0.00017671,2]
[351226305,1738450245061,-1923.7,0.00017671,2]
[351226306,1738450245070,-564.89,0.00017671,2]
[351226307,1738450245080,-500.0,0.00017671,2]
[351226308,1738450245089,-500.0,0.00017671,2]
[351226309,1738450245098,-738.99,0.00017671,2]
[351226310,1738450245107,-500.0,0.00017671,2]
[351226311,1738450245116,-1171.42,0.00017671,2]
[351226312,1738450245125,-500.0,0.00017671,2]
[351226313,1738450245134,-9424.42881172,0.000177,2]
[351226314,1738450245143,-66.1811308,0.00017704,2]
[351226315,1738450245155,-433.8188692,0.00017704,2]
[351226316,1738450245165,-151.0,0.00017739,3]
[351226317,1738450245174,-150.08,0.00017808,2]
[351226318,1738450245183,-290.857357,0.00017808,2]
[351226319,1738450245192,-151.0,0.00017808,2]
[351226320,1738450245201,-500.0,0.00017808,2]
[351226321,1738450245210,-1216.12,0.00017808,2]
[351226322,1738450245219,-567.22,0.00017808,2]
[351226323,1738450245229,-500.0,0.00017808,2]
[351226324,1738450245237,-500.0,0.00017808,2]
[351226325,1738450245246,-500.0,0.00017808,2]
[351226326,1738450245255,-53.60540026,0.00017808,2]
[351226348,1738450246456,-446.39459974,0.00017808,2]
[351226349,1738450246466,-84.81081006,0.00017808,2]
[351226351,1738450301267,211.804462,0.00013973,2]
[351226352,1738450301603,500.0,0.00014964,2]
[351226353,1738451106755,209.45696,0.00013973,2]
[351226415,1738451432785,-1626.63026502,0.00015248,2]
[351226417,1738451432794,-300.0,0.00015402,2]
[351226419,1738451432804,-24900.0,0.00015403,2]
[351226421,1738451432814,-640.594624,0.00015457,2]
[351226423,1738451432824,-640.594624,0.00015486,2]
[351226425,1738451432833,-311.4120564,0.00015625,2]
[351226427,1738451432843,-500.0,0.00016338,2]
[351226429,1738451432852,-500.0,0.00016338,2]
[351226431,1738451432862,-500.0,0.00016338,2]
[351226433,1738451432872,-330.98716858,0.00016338,2]
[351226450,1738451433022,-267.33737509,0.00016338,2]
[351226452,1738451433033,-150.0,0.000164,2]
[351226454,1738451433044,-500.0,0.00016438,2]
[351226456,1738451433054,-157.74143916,0.00016438,2]
[351226458,1738451433064,-500.0,0.00016438,2]
[351226460,1738451433074,-618.4764435,0.00016438,2]
[351226462,1738451433084,-500.0,0.00016438,2]
[351226464,1738451433094,-500.0,0.00016438,2]
[351226466,1738451433104,-405.92,0.00016438,2]
[351226468,1738451433114,-500.0,0.00016438,2]
[351226471,1738451433125,-500.0,0.00016438,2]
[351226473,1738451433134,-509.23372067,0.00016438,2]
[351226474,1738451433144,-500.0,0.00016438,2]
[351226477,1738451433155,-526.63951303,0.00016438,2]
[351226479,1738451433164,-339.77163267,0.00016438,2]
[351226481,1738451433173,-278.87157778,0.00016438,2]
[351226483,1738451433182,-613.86323294,0.00016438,2]
[351226485,1738451433192,-500.0,0.00016438,2]
[351226487,1738451433202,-500.0,0.00016438,2]
[351226489,1738451433211,-500.0,0.00016438,2]
[351226491,1738451433221,-526.02579068,0.00016438,2]
[351226493,1738451433230,-350.32106997,0.00016438,2]
[351226495,1738451433240,-437.68414253,0.00016438,2]
[351226497,1738451433250,-500.0,0.00016438,2]
[351226499,1738451433260,-500.0,0.00016438,2]
[351226501,1738451433272,-500.0,0.00016438,2]
[351226503,1738451433282,-500.0,0.00016438,2]
[351226505,1738451433291,-500.0,0.00016438,2]
[351226507,1738451433301,-500.0,0.00016438,2]
[351226509,1738451433310,-500.0,0.00016438,2]
[351226511,1738451433319,-500.0,0.00016438,2]
[351226513,1738451433328,-500.0,0.00016438,2]
[351226515,1738451433337,-500.0,0.00016438,2]
[351226517,1738451433346,-500.0,0.00016438,2]
[351226519,1738451433355,-500.0,0.00016438,2]
[351226520,1738451433365,-604.73305014,0.00016438,2]
[351226522,1738451433374,-500.0,0.00016438,2]
[351226524,1738451433383,-500.0,0.00016438,2]
[351226525,1738451433392,-500.0,0.00016438,2]
[351226527,1738451433402,-500.0,0.00016438,2]
[351226528,1738451433411,-507.03803585,0.00016438,2]
[351226529,1738451433420,-500.0,0.00016438,2]
[351226531,1738451433430,-500.0,0.00016438,2]
[351226532,1738451433439,-500.0,0.00016438,2]
[351226534,1738451433448,-500.0,0.00016438,2]
[351226535,1738451433458,-500.0,0.00016438,2]
[351226536,1738451433470,-500.0,0.00016438,2]
[351226537,1738451433480,-500.0,0.00016438,2]
[351226538,1738451433489,-500.0,0.00016438,2]
[351226539,1738451433498,-500.0,0.00016438,2]
[351226540,1738451433508,-500.0,0.00016438,2]
[351226541,1738451433517,-500.0,0.00016438,2]
[351226542,1738451433529,-500.0,0.00016438,2]
[351226543,1738451433539,-449.64892661,0.00016438,2]
[351226544,1738451433548,-500.0,0.00016438,2]
[351226545,1738451433557,-500.0,0.00016438,2]
[351226546,1738451433566,-462.49862645,0.00016438,2]
[351226547,1738451433576,-500.0,0.00016438,2]
[351226548,1738451433585,-500.0,0.00016438,2]
[351226549,1738451433595,-500.0,0.00016438,2]
[351226550,1738451433604,-500.0,0.00016438,2]
[351226551,1738451433613,-500.0,0.00016438,2]
[351226552,1738451433622,-500.0,0.00016438,2]
[351226553,1738451433631,-317.96,0.00016438,2]
[351226554,1738451433640,-500.0,0.00016438,2]
[351226555,1738451433649,-628.33,0.00016438,2]
[351226556,1738451433658,-561.21,0.00016438,2]
[351226557,1738451433667,-348.75292481,0.00016438,2]
[351226558,1738451433676,-500.0,0.00016438,2]
[351226559,1738451433685,-500.0,0.00016438,2]
[351226560,1738451433699,-277.9013644,0.00016438,2]
[351226561,1738451433709,-746.86,0.00016438,2]
[351226562,1738451433719,-500.0,0.00016438,2]
[351226563,1738451433728,-500.0,0.00016438,2]
[351226564,1738451433740,-500.0,0.00016438,2]
[351226565,1738451433749,-500.0,0.00016438,2]